bitfinex/quotes_BTCUSD_20260104
["timestamp","ask_amount","ask_price","bid_price","bid_amount"]
[1767541732883,0.01097514,91115.0,91110.0,0.01097574]
[1767541733033,0.06585288,91113.0,91109.0,0.0221083]
[1767541733233,0.06585129,91115.0,91109.0,0.08796338]
[1767541733426,0.01097526,91114.0,91110.0,0.01097574]
[1767541733875,0.01097538,91113.0,91109.0,0.0001083]
[1767541734030,0.06585172,91114.0,91109.0,0.08792346]
[1767541734262,0.01097514,91115.0,91111.0,0.01097562]
[1767541734422,0.01097514,91115.0,91109.0,0.08792346]
[1767541734423,0.01097526,91114.0,91109.0,0.08792346]
[1767541734614,0.06584988,91117.0,91114.0,0.000999]
[1767541734818,0.05487531,91116.0,91114.0,0.000999]
[1767541735019,0.06584988,91117.0,91112.0,0.06585294]
[1767541735258,0.01097502,91116.0,91112.0,0.0109755]
[1767541737222,0.06584988,91117.0,91112.0,0.06585278]
[1767541738987,0.01097514,91115.0,91111.0,0.01097562]
[1767541739204,0.06585049,91116.0,91112.0,0.0109755]
[1767541739402,0.06584947,91117.0,91112.0,0.06585282]
[1767541739676,0.06584917,91118.0,91113.0,0.06585189]
[1767541740450,0.06584965,91117.0,91112.0,0.06585282]
[1767541740702,0.05487206,91122.0,91117.0,0.000999]
[1767541740953,0.06584667,91121.0,91117.0,0.000999]
[1767541741110,0.01097417,91123.0,91118.0,0.01097477]
[1767541741307,0.06584525,91123.0,91118.0,0.06584843]
[1767541741689,0.0001536,91124.0,91121.0,0.01097441]
[1767541741915,0.0001536,91124.0,91120.0,0.01097453]
[1767541742436,0.00955105,91130.0,91125.0,0.06584355]
[1767541742579,0.06584026,91130.0,91126.0,0.04958521]
[1767541742790,0.06584026,91130.0,91125.0,0.06584357]
[1767541743271,0.01097333,91130.0,91126.0,0.06055902]
[1767541743382,0.01097333,91130.0,91126.0,0.11542808]
[1767541743581,0.05486536,91133.0,91130.0,0.000846]
[1767541743783,0.01097297,91133.0,91130.0,0.000846]
[1767541744011,0.01097297,91133.0,91126.0,0.04958521]
[1767541744012,0.01097345,91129.0,91126.0,0.04958521]
[1767541744236,0.06584031,91130.0,91126.0,0.04958521]
[1767541744646,0.06584031,91130.0,91125.0,0.01097393]
[1767541745027,0.06584031,91130.0,91125.0,0.0658434]
[1767541745440,0.000153,91125.0,91117.0,0.0109749]
[1767541745645,0.06584445,91124.0,91119.0,0.06584758]
[1767541745880,0.01097381,91126.0,91120.0,0.06584689]
[1767541746086,0.01097381,91126.0,91121.0,0.05487156]
[1767541746225,0.01097381,91126.0,91122.0,0.01097429]
[1767541746437,0.06584155,91128.0,91122.0,0.06584558]
[1767541747234,0.01097369,91127.0,91123.0,0.01097417]
[1767541747439,0.01097381,91126.0,91122.0,0.01097429]
[1767541747760,0.06584149,91128.0,91123.0,0.06584505]
[1767541747972,0.01097369,91127.0,91123.0,0.01097417]
[1767541748789,0.01097369,91127.0,91123.0,0.06584492]
[1767541749920,0.0658404,91130.0,91127.0,0.000846]
[1767541750064,0.05486787,91128.0,91122.0,0.01146382]
[1767541750264,0.0548678,91129.0,91122.0,0.06633526]
[1767541750588,0.01097369,91127.0,91123.0,0.01097417]
[1767541750786,0.01097369,91127.0,91122.0,0.06633526]
[1767541750989,0.065842,91128.0,91123.0,0.01097417]
[1767541751190,0.01097369,91127.0,91123.0,0.06584505]
[1767541751526,0.06584156,91128.0,91123.0,0.0658449]
[1767541751761,0.01097357,91128.0,91124.0,0.01097405]
[1767541751897,0.01097345,91129.0,91125.0,0.06584345]
[1767541752130,0.06584002,91130.0,91125.0,0.06584345]
[1767541753022,0.06584079,91129.0,91125.0,0.01097393]
[1767541753694,0.06584002,91130.0,91125.0,0.01097393]
[1767541753896,0.05487088,91123.0,91122.0,0.00048953]
[1767541754155,0.0548707,91124.0,91122.0,0.00048953]
[1767541754924,0.0658438,91125.0,91122.0,5.3e-07]
[1767541755345,0.05487076,91124.0,91122.0,5.3e-07]
[1767541755507,0.0658438,91125.0,91122.0,5.3e-07]
[1767541756404,0.01097393,91125.0,91122.0,5.3e-07]
[1767541756609,0.01097465,91119.0,91117.0,0.02196]
[1767541756833,0.01097441,91121.0,91117.0,0.07154521]
[1767541757032,0.01097441,91121.0,91119.0,0.000489]
[1767541757230,0.06584621,91123.0,91118.0,0.01097477]
[1767541757458,0.06584621,91123.0,91119.0,0.01097465]
[1767541757664,0.05687817,91122.0,91118.0,0.06584812]
[1767541757868,0.05687817,91122.0,91117.0,0.08780881]
[1767541758085,0.06584578,91122.0,91117.0,0.08780881]
[1767541758728,0.06584578,91122.0,91117.0,0.06584881]
[1767541758932,0.01097453,91120.0,91116.0,0.02196]
[1767541759135,0.00051,91117.0,91116.0,0.02196]
[1767541759315,0.01097465,91119.0,91117.0,0.04958521]
[1767541760259,0.01092931,91120.0,91117.0,0.04958521]
[1767541760504,0.06584692,91121.0,91117.0,0.04958521]
[1767541760875,0.01097453,91120.0,91117.0,0.04958521]
[1767541761233,0.06584692,91121.0,91117.0,0.04951665]
[1767541761509,0.06584734,91120.0,91117.0,0.04951665]
[1767541761725,0.01097453,91120.0,91117.0,0.04951665]
[1767541761929,0.06584746,91120.0,91117.0,0.04951665]
[1767541762429,0.06584759,91121.0,91117.0,0.04951665]
[1767541763175,0.06584759,91121.0,91118.0,0.04958521]
[1767541764186,0.01097417,91123.0,91121.0,0.000999]
[1767541764393,0.01097417,91123.0,91120.0,0.04958521]
[1767541765193,0.06584519,91123.0,91120.0,0.04958521]
[1767541765434,0.00048952,91128.0,91121.0,0.04958521]
[1767541765611,0.06584076,91129.0,91126.0,0.04958521]
[1767541766213,0.05486809,91128.0,91126.0,0.04958521]
[1767541766412,0.06583982,91131.0,91127.0,0.04958521]
[1767541766846,0.00997421,91131.0,91127.0,0.0605589]
[1767541767616,0.01097333,91130.0,91127.0,0.04858621]
[1767541767847,0.05486787,91128.0,91127.0,0.04858621]
[1767541768215,0.06584373,91125.0,91122.0,0.04958521]
[1767541768854,0.01097393,91125.0,91122.0,0.04958521]
[1767541769343,0.06584372,91125.0,91122.0,0.04958521]
[1767541770164,0.05487081,91124.0,91122.0,0.04958521]
[1767541770377,0.06584372,91125.0,91122.0,0.04958521]
[1767541771706,0.05487037,91124.0,91122.0,0.04958521]
[1767541772666,0.01097393,91125.0,91124.0,0.04833913]
[1767541772873,0.06584361,91125.0,91124.0,0.04734013]
[1767541774607,0.01097345,91129.0,91124.0,0.04734013]
[1767541774822,0.01097345,91129.0,91126.0,0.04670595]
[1767541775110,0.05486848,91127.0,91126.0,0.04670595]
[1767541776692,0.06484076,91131.0,91128.0,0.04670595]
[1767541777294,0.01097249,91137.0,91128.0,0.05767952]
[1767541777655,0.34445315,91150.0,91134.0,0.04670595]
[1767541777656,0.03293225,91139.0,91134.0,0.04670595]
[1767541777780,0.04526605,91136.0,91133.0,0.01097297]
[1767541778164,0.03611808,91141.0,91137.0,0.01097249]
[1767541778299,0.01097213,91140.0,91135.0,0.06583635]
[1767541779297,0.06583291,91140.0,91135.0,0.06583635]
[1767541779488,0.01097225,91139.0,91135.0,0.06583635]
[1767541779837,0.06583382,91139.0,91135.0,0.01097273]
[1767541781366,0.01097225,91139.0,91135.0,0.01097273]
[1767541781574,0.06583291,91140.0,91136.0,0.01097261]
[1767541781955,0.01097225,91139.0,91135.0,0.06583627]
[1767541782768,0.01097213,91140.0,91136.0,0.04670595]
[1767541783082,0.05486114,91140.0,91136.0,0.05767856]
[1767541783296,0.06583327,91140.0,91136.0,0.05767856]
[1767541783900,0.06583327,91140.0,91136.0,0.04670595]
[1767541784149,0.01097189,91142.0,91137.0,0.04670595]
[1767541784390,0.06583219,91141.0,91137.0,0.05767844]
[1767541784685,0.06583219,91141.0,91137.0,0.04670595]
[1767541784848,0.01097213,91140.0,91137.0,0.04670595]
[1767541785600,0.01104737,91140.0,91137.0,0.04670595]
[1767541786236,0.0110552,91141.0,91137.0,0.04670595]
[1767541786388,0.0110552,91141.0,91137.0,0.01097249]
[1767541786549,0.02202721,91141.0,91136.0,0.06583513]
[1767541787056,0.04526605,91142.0,91139.0,0.01097225]
[1767541787301,0.04526605,91142.0,91140.0,0.05486063]
[1767541787625,0.03293164,91144.0,91139.0,0.01097225]
[1767541787788,0.01097176,91143.0,91139.0,0.01097225]
[1767541787974,0.04526605,91142.0,91139.0,0.06583345]
[1767541788601,0.04526605,91142.0,91139.0,0.01097225]
[1767541789718,0.04526605,91142.0,91140.0,0.05486061]
[1767541790533,0.02196,91144.0,91141.0,0.01097201]
[1767541790958,0.01097116,91148.0,91144.0,0.05485824]
[1767541791101,0.03293128,91147.0,91142.0,0.01097189]
[1767541791305,0.08778779,91147.0,91143.0,0.01097176]
[1767541791489,0.03293128,91147.0,91143.0,0.01097176]
[1767541791686,0.02196,91147.0,91143.0,0.06583036]
[1767541791910,0.02196,91147.0,91144.0,0.01097164]
[1767541792111,0.06722605,91147.0,91144.0,0.01097164]
[1767541792311,0.06722605,91147.0,91146.0,0.05485704]
[1767541792312,0.02196,91147.0,91146.0,0.05485704]
[1767541792547,0.02196,91148.0,91147.0,0.04670595]
[1767541792692,0.02196,91148.0,91145.0,0.11253511]
[1767541793647,0.02196,91148.0,91146.0,0.04670595]
[1767541793876,0.02196,91148.0,91146.0,0.0466155]
[1767541794069,0.02196,91148.0,91146.0,0.0456165]
[1767541794463,0.02196,91148.0,91146.0,0.10047301]
[1767541795040,0.02196,91148.0,91146.0,0.0456165]
[1767541795242,0.020961,91148.0,91146.0,0.05485647]
[1767541795490,0.020961,91148.0,91147.0,0.05485644]
[1767541795693,0.054851,91158.0,91152.0,0.01097068]
[1767541795869,0.02196,91154.0,91152.0,0.00997168]
[1767541796067,0.02196,91154.0,91151.0,0.0109708]
[1767541796228,0.02196,91154.0,91150.0,0.05485409]
[1767541796434,0.02196,91154.0,91150.0,0.01097092]
[1767541796435,0.03293044,91154.0,91150.0,0.01097092]
[1767541797016,0.03293044,91154.0,91150.0,0.06582551]
[1767541797548,0.02196,91154.0,91150.0,0.06582551]
[1767541798636,0.02196,91154.0,91151.0,0.06582465]
[1767541799405,0.0109702,91156.0,91152.0,0.01097068]
[1767541800049,0.14105304,91197.0,91152.0,0.01097068]
[1767541800050,0.02219087,91176.0,91165.0,0.04670595]
[1767541800265,0.01096827,91172.0,91167.0,0.01096888]
[1767541800426,0.21935837,91175.0,91167.0,0.01096888]
[1767541800427,0.06580751,91175.0,91168.0,0.05484323]
[1767541800628,0.01096803,91174.0,91168.0,0.05484323]
[1767541800977,0.02255174,91176.0,91173.0,0.01096815]
[1767541801185,0.02255174,91176.0,91168.0,0.01096876]
[1767541801186,0.03351953,91176.0,91168.0,0.01096876]
[1767541801358,0.06629924,91173.0,91167.0,0.06581312]
[1767541801607,0.01096827,91172.0,91168.0,0.01096876]
[1767541801782,0.0109684,91171.0,91167.0,0.01096888]
[1767541801957,0.06580981,91172.0,91167.0,0.06581305]
[1767541802160,0.01096864,91169.0,91160.0,0.35542287]
[1767541802362,0.00048979,91160.0,91150.0,0.23038906]
[1767541802530,0.06581841,91160.0,91150.0,0.34445315]
[1767541802725,0.01096972,91160.0,91155.0,0.05485146]
[1767541802933,0.0109696,91161.0,91156.0,0.05485094]
[1767541803141,0.01096984,91159.0,91156.0,0.04588401]
[1767541803351,0.06582252,91155.0,91149.0,0.04588401]
[1767541803551,0.06582123,91156.0,91150.0,0.06582496]
[1767541803800,0.0658206,91157.0,91151.0,0.05485403]
[1767541803970,0.0109702,91156.0,91152.0,0.05685469]
[1767541804173,0.0109702,91156.0,91152.0,0.06582407]
[1767541804380,0.065822,91155.0,91149.0,0.10073902]
[1767541804601,0.0109702,91156.0,91151.0,0.0109708]
[1767541804987,0.01097008,91157.0,91152.0,0.01097068]
[1767541805378,0.0109702,91156.0,91152.0,0.01097068]
[1767541805602,0.01097008,91157.0,91152.0,0.01097068]
[1767541806010,0.01097008,91157.0,91152.0,0.05685469]
[1767541806448,0.01097008,91157.0,91153.0,0.01097056]
[1767541806914,0.0109702,91156.0,91152.0,0.04588401]
[1767541807124,0.06582232,91155.0,91150.0,0.01097092]
[1767541807318,0.06582232,91155.0,91148.0,0.06582667]
[1767541807319,0.01097056,91153.0,91149.0,0.04588401]
[1767541807557,0.06582216,91155.0,91151.0,0.04588401]
[1767541808205,0.01097032,91155.0,91151.0,0.04588401]
[1767541808393,0.01097032,91155.0,91151.0,0.05685481]
[1767541809426,0.01087987,91155.0,91151.0,0.05685481]
[1767541809618,0.06573153,91155.0,91151.0,0.05685481]
[1767541809835,0.06573153,91155.0,91151.0,0.04588401]
[1767541810062,0.01097044,91154.0,91151.0,0.04588401]
[1767541811189,0.05485286,91153.0,91151.0,0.04588401]
[1767541811330,0.06573153,91155.0,91153.0,0.04688301]
[1767541811736,0.06573153,91155.0,91153.0,0.04588401]
[1767541812774,0.05485222,91154.0,91153.0,0.04588401]
[1767541812973,0.06582266,91154.0,91150.0,0.04588401]
[1767541813202,0.06582341,91153.0,91148.0,0.05485526]
[1767541813381,0.06582341,91153.0,91149.0,0.01097104]
[1767541813559,0.06582341,91153.0,91145.0,0.01097152]
[1767541813560,0.01097116,91148.0,91141.0,0.04588401]
[1767541813772,0.0109714,91146.0,91142.0,0.04588401]
[1767541813999,0.06582926,91145.0,91141.0,0.01097201]
[1767541814337,0.06483026,91145.0,91140.0,0.05685614]
[1767541814558,0.01097116,91148.0,91143.0,0.01097176]
[1767541814674,0.06582728,91148.0,91143.0,0.01097176]
[1767541814881,0.06582784,91147.0,91142.0,0.0568559]
[1767541815085,0.01097128,91147.0,91143.0,0.01097176]
[1767541815294,0.0329302,91156.0,91151.0,0.04588401]
[1767541815521,0.01097044,91154.0,91151.0,0.04588401]
[1767541816404,0.05485302,91153.0,91151.0,0.04588401]
[1767541816802,0.01097032,91155.0,91151.0,0.04588401]
[1767541817070,0.01097032,91155.0,91152.0,0.04588401]
[1767541817459,0.01097032,91155.0,91151.0,0.05485402]
[1767541817460,0.06582196,91155.0,91151.0,0.05485402]
[1767541817612,0.02196,91156.0,91151.0,0.0109708]
[1767541817799,0.02196,91157.0,91153.0,0.01097056]
[1767541818004,0.06582175,91156.0,91152.0,0.04588401]
[1767541818532,0.08778057,91157.0,91153.0,0.04588401]
[1767541818716,0.08778057,91157.0,91153.0,0.05685457]
[1767541819540,0.0109702,91156.0,91153.0,0.04488501]
[1767541819911,0.08778059,91157.0,91153.0,0.04488501]
[1767541820113,0.06582126,91156.0,91153.0,0.04488501]
[1767541820368,0.06582126,91156.0,91152.0,0.01097068]
[1767541820524,0.08778059,91157.0,91153.0,0.04588401]
[1767541820726,0.01096948,91162.0,91158.0,0.04588401]
[1767541820933,0.01096948,91162.0,91158.0,0.05685397]
[1767541821177,0.01096948,91162.0,91158.0,0.04588401]
[1767541821378,0.01096948,91162.0,91158.0,0.1117036]
[1767541821557,0.0109696,91161.0,91158.0,0.04588401]
[1767541821917,0.06581739,91162.0,91157.0,0.06582035]
[1767541822123,0.06581773,91161.0,91156.0,0.06582114]
[1767541822322,0.06581739,91162.0,91157.0,0.06582008]
[1767541822528,0.01096972,91160.0,91155.0,0.01097032]
[1767541822726,0.0109696,91161.0,91157.0,0.05485032]
[1767541823129,0.06581803,91162.0,91157.0,0.06582038]
[1767541823350,0.0109696,91161.0,91157.0,0.06582038]
[1767541823786,0.01096948,91162.0,91157.0,0.06582038]
[1767541824003,0.06581723,91162.0,91158.0,0.01096996]
[1767541824194,0.06581723,91162.0,91158.0,0.05685397]
[1767541824796,0.06581553,91164.0,91162.0,0.000999]
[1767541824995,0.01096996,91158.0,91153.0,0.02024067]
[1767541825200,0.06581738,91162.0,91157.0,0.05484998]
[1767541825532,0.06581738,91162.0,91158.0,0.01096996]
[1767541825662,0.06581738,91162.0,91157.0,0.06582006]
[1767541825862,0.0109696,91161.0,91157.0,0.06582006]
[1767541826694,0.06581738,91162.0,91157.0,0.06582006]
[1767541827681,0.06581738,91162.0,91158.0,0.01096996]
[1767541827883,0.06581621,91163.0,91158.0,0.06581935]
[1767541828082,0.02196,91164.0,91161.0,0.0109696]
[1767541828348,0.02196,91164.0,91156.0,0.19043939]
[1767541828848,0.03292924,91164.0,91160.0,0.01096972]
[1767541829830,0.03292924,91164.0,91160.0,0.0658183]
[1767541829992,0.03292924,91164.0,91160.0,0.05685373]
[1767541830195,0.08777572,91164.0,91160.0,0.04588401]
[1767541830421,0.08777572,91164.0,91160.0,0.04488501]
[1767541830640,0.08777572,91164.0,91159.0,0.01096984]
[1767541830947,0.01096936,91163.0,91158.0,0.01096996]
[1767541831123,0.06581658,91163.0,91158.0,0.01096996]
[1767541831310,0.01096948,91162.0,91158.0,0.04727031]
[1767541831515,0.0109696,91161.0,91157.0,0.05485035]
[1767541831706,0.01096948,91162.0,91157.0,0.06582043]
[1767541831937,0.06581724,91162.0,91157.0,0.06582043]
[1767541832138,0.0109696,91161.0,91157.0,0.01097008]
[1767541832452,0.06581724,91162.0,91157.0,0.06582033]
[1767541833179,0.06581724,91162.0,91158.0,0.01096996]
[1767541835956,0.01096948,91162.0,91157.0,0.01097008]
[1767541836158,0.06581738,91162.0,91157.0,0.01097008]
[1767541836361,0.06581738,91162.0,91158.0,0.01096996]
[1767541836620,0.0109702,91156.0,91153.0,0.02024067]
[1767541836760,0.06582125,91156.0,91153.0,0.02024067]
[1767541836969,0.0548517,91155.0,91153.0,0.02024067]
[1767541837542,0.06582125,91156.0,91153.0,0.02024067]
[1767541837691,0.0658207,91157.0,91153.0,0.02024067]
[1767541839146,0.0109702,91156.0,91153.0,0.02024067]
[1767541839353,0.05485162,91155.0,91153.0,0.02024067]
[1767541839554,0.06582122,91156.0,91153.0,0.02024067]
[1767541840686,0.05485169,91155.0,91153.0,0.02024067]
[1767541841205,0.06582015,91158.0,91153.0,0.03121123]
[1767541841405,0.06582015,91158.0,91155.0,0.000999]
[1767541841607,0.05485053,91157.0,91155.0,0.000999]
[1767541841933,0.06582061,91157.0,91153.0,0.03121123]
[1767541842487,0.01097008,91157.0,91153.0,0.03121123]
[1767541842730,0.06582015,91158.0,91153.0,0.08606383]
[1767541842942,0.01097008,91157.0,91153.0,0.03121123]
[1767541843143,0.06582015,91158.0,91153.0,0.08606396]
[1767541843352,0.01096996,91158.0,91154.0,0.06582253]
[1767541843996,0.01096996,91158.0,91154.0,0.01097044]
[1767541844548,0.01097008,91157.0,91153.0,0.08606396]
[1767541845484,0.0109702,91156.0,91153.0,0.02024067]
[1767541845687,0.01097008,91157.0,91153.0,0.08606403]
[1767541845983,0.01097008,91157.0,91153.0,0.03121123]
[1767541846855,0.0109702,91156.0,91153.0,0.02024067]
[1767541847051,0.06582131,91156.0,91153.0,0.02024067]
[1767541847345,0.0109702,91156.0,91153.0,0.02024067]
[1767541847571,0.06581985,91158.0,91153.0,0.0860639]
[1767541850076,0.06581912,91159.0,91155.0,0.05648943]
[1767541850311,0.01096996,91158.0,91155.0,0.04551911]
[1767541850502,0.0658199,91158.0,91154.0,0.01097044]
[1767541850718,0.06582053,91157.0,91153.0,0.03121123]
[1767541851140,0.06582054,91157.0,91153.0,0.03121123]
[1767541851529,0.01097008,91157.0,91153.0,0.08606387]
[1767541851852,0.01096948,91162.0,91155.0,0.01097032]
[1767541852020,0.01096984,91159.0,91155.0,0.01097032]
[1767541852222,0.01096984,91159.0,91154.0,0.01097044]
[1767541852650,0.06581956,91159.0,91154.0,0.06582253]
[1767541852860,0.06581981,91158.0,91153.0,0.03121123]
[1767541853062,0.05485051,91157.0,91153.0,0.03121123]
[1767541853281,0.06581981,91158.0,91153.0,0.08606401]
[1767541853736,0.05485067,91157.0,91153.0,0.03121123]
[1767541853935,0.05485067,91157.0,91153.0,0.01097056]
[1767541854254,0.06582075,91157.0,91153.0,0.01097056]
[1767541854779,0.06581981,91158.0,91153.0,0.06582319]
[1767541855819,0.06582051,91157.0,91153.0,0.06582319]
[1767541856526,0.06582051,91157.0,91153.0,0.01097056]
[1767541856728,0.06581981,91158.0,91153.0,0.06582304]
[1767541857717,0.01097008,91157.0,91153.0,0.06582304]
[1767541858694,0.01097008,91157.0,91152.0,0.0548529]
[1767541858889,0.06582095,91157.0,91152.0,0.0548529]
[1767541859298,0.000999,91152.0,91150.0,0.04551911]
[1767541859474,0.06582019,91159.0,91155.0,0.04551911]
[1767541859676,0.06581979,91158.0,91155.0,0.04547389]
[1767541859901,0.06581979,91158.0,91153.0,0.11134205]
[1767541860104,0.06581911,91159.0,91154.0,0.06582247]
[1767541860971,0.02196,91163.0,91160.0,0.01096972]
[1767541861114,0.02196,91165.0,91161.0,0.05671859]
[1767541861290,0.02196,91165.0,91162.0,0.05484687]
[1767541861490,0.06581278,91168.0,91162.0,0.06577113]
[1767541861491,0.01096888,91167.0,91162.0,0.06577113]
[1767541861736,0.01096888,91167.0,91158.0,0.01096996]
[1767541861737,0.01096791,91175.0,91167.0,0.21937748]
[1767541861941,0.01096791,91175.0,91171.0,0.0109684]
[1767541862144,0.000999,91171.0,91170.0,0.05671751]
[1767541862312,0.000999,91171.0,91170.0,0.06581112]
[1767541862512,0.000999,91171.0,91170.0,0.01096852]
[1767541862718,0.01096803,91174.0,91170.0,0.01096852]
[1767541862922,0.06580824,91174.0,91170.0,0.01096852]
[1767541863154,0.01096803,91174.0,91170.0,0.0658111]
[1767541863493,0.01096791,91175.0,91171.0,0.0109684]
[1767541863904,0.000999,91171.0,91170.0,0.01096852]
[1767541864107,0.00023087,91176.0,91173.0,0.06580887]
[1767541864305,0.00023087,91176.0,91174.0,0.05484019]
[1767541864549,8.7e-07,91176.0,91174.0,0.05484019]
[1767541864989,8.7e-07,91176.0,91173.0,0.01096815]
[1767541865424,8.7e-07,91176.0,91173.0,0.06580887]
[1767541866040,0.03308091,91180.0,91175.0,0.0567169]
[1767541866488,0.0001536,91180.0,91176.0,0.06580672]
[1767541866692,0.01112091,91180.0,91176.0,0.01096779]
[1767541867277,0.0001536,91180.0,91176.0,0.06580675]
[1767541867702,0.01112091,91180.0,91176.0,0.01096779]
[1767541869058,0.01096671,91185.0,91179.0,0.04574899]
[1767541869255,0.01100675,91188.0,91183.0,0.01096695]
[1767541869256,0.01096635,91188.0,91183.0,0.01096695]
[1767541869465,0.01096623,91189.0,91184.0,0.06580095]
[1767541869632,0.01096647,91187.0,91183.0,0.05648594]
[1767541869875,0.01096647,91187.0,91182.0,0.06580125]
[1767541870044,0.01096647,91187.0,91181.0,0.01096719]
[1767541870390,0.01096659,91186.0,91181.0,0.06580316]
[1767541870709,0.01096659,91186.0,91182.0,0.01096707]
[1767541871553,0.01096647,91187.0,91183.0,0.01096695]
[1767541871724,0.06579815,91188.0,91183.0,0.01096695]
[1767541872106,0.01136587,91192.0,91187.0,0.01096647]
[1767541872350,0.02236,91191.0,91187.0,0.01096647]
[1767541872553,0.01096623,91189.0,91182.0,0.05483538]
[1767541872764,0.01096659,91186.0,91182.0,0.05483538]
[1767541873006,0.06579911,91187.0,91182.0,0.01096707]
[1767541873165,0.01096635,91188.0,91183.0,0.01096695]
[1767541873362,0.01096647,91187.0,91183.0,0.01096695]
[1767541873609,0.01096635,91188.0,91183.0,0.06580171]
[1767541873729,0.01096635,91188.0,91184.0,0.01096683]
[1767541873937,0.01096635,91188.0,91183.0,0.06580171]
[1767541874715,0.06579668,91190.0,91185.0,0.06580005]
[1767541874841,0.08815641,91191.0,91186.0,0.01096659]
[1767541875254,0.06619641,91191.0,91186.0,0.01096659]
[1767541875458,0.03332599,91191.0,91187.0,0.01096647]
[1767541875858,0.01136599,91191.0,91187.0,0.01096647]
[1767541876096,0.06619528,91192.0,91187.0,0.01096647]
[1767541876097,0.0004,91192.0,91190.0,0.05483057]
[1767541876409,0.02227154,91192.0,91190.0,0.05483027]
[1767541876611,0.02227154,91192.0,91191.0,0.05482997]
[1767541876968,0.02218308,91192.0,91191.0,0.05482997]
[1767541877171,0.00013462,91192.0,91190.0,0.10057926]
[1767541877371,0.0004,91195.0,91192.0,0.06579487]
[1767541877715,0.00031153,91195.0,91194.0,0.05482816]
[1767541878144,0.00031153,91195.0,91193.0,0.05482851]
[1767541878274,0.00031153,91195.0,91194.0,0.05482816]
[1767541878679,0.00022306,91195.0,91194.0,0.05482816]
[1767541879707,0.0466332,91195.0,91193.0,0.05482851]
[1767541880082,0.00022306,91195.0,91193.0,0.05482851]
[1767541880251,0.00022306,91195.0,91194.0,0.04574899]
[1767541880668,0.00022306,91195.0,91194.0,0.10057715]
[1767541881944,0.0001536,91198.0,91197.0,0.05482636]
[1767541882185,0.0001536,91198.0,91197.0,0.10057535]
[1767541882974,6.512e-05,91198.0,91197.0,0.10057535]
[1767541883169,0.00042596,91198.0,91197.0,0.09957635]
[1767541883749,0.03332431,91205.0,91201.0,0.01096479]
[1767541884035,0.02246821,91205.0,91202.0,0.05671366]
[1767541884963,0.06578715,91204.0,91200.0,0.04574899]
[1767541885172,0.06578861,91202.0,91197.0,0.06579163]
[1767541885374,0.06578861,91202.0,91198.0,0.01096515]
[1767541885562,0.01096479,91201.0,91198.0,0.04574899]
[1767541885757,0.01096491,91200.0,91195.0,0.01096551]
[1767541886014,0.01096491,91200.0,91191.0,0.01096599]
[1767541886015,0.01096539,91196.0,91191.0,0.05671498]
[1767541886215,0.01096539,91196.0,91189.0,0.06579706]
[1767541886216,0.01096611,91190.0,91186.0,0.04574899]
[1767541886531,0.06579614,91191.0,91186.0,0.06579937]
[1767541886736,0.06579578,91192.0,91187.0,0.06579858]
[1767541886893,0.06579578,91192.0,91185.0,0.0786757]
[1767541886894,0.01096611,91190.0,91185.0,0.0786757]
[1767541887088,0.01096611,91190.0,91186.0,0.01096659]
[1767541887317,0.06579596,91191.0,91186.0,0.06579936]
[1767541887668,0.01096635,91188.0,91185.0,0.02196]
[1767541887884,0.01096671,91185.0,91180.0,0.0567163]
[1767541888141,0.01096623,91189.0,91180.0,0.0567163]
[1767541888142,0.01096659,91186.0,91180.0,0.04574899]
[1767541888342,0.01096719,91181.0,91178.0,0.02196]
[1767541888558,0.01096719,91181.0,91176.0,0.04574899]
[1767541888559,0.0658032,91181.0,91176.0,0.04574899]
[1767541888749,0.05483688,91180.0,91176.0,0.04574899]
[1767541888913,0.0658032,91181.0,91176.0,0.05671678]
[1767541889115,0.0658047,91179.0,91174.0,0.05484013]
[1767541889294,0.01096779,91176.0,91172.0,0.03292827]
[1767541889671,0.01096791,91175.0,91172.0,0.02196]
[1767541889883,0.01096815,91173.0,91169.0,0.01096864]
[1767541890116,0.01096791,91175.0,91170.0,0.01096852]
[1767541890327,0.01096803,91174.0,91170.0,0.04526997]
[1767541890537,0.06580779,91175.0,91170.0,0.1114418]
[1767541890746,0.0548408,91173.0,91170.0,0.04563081]
[1767541890949,0.01096803,91174.0,91170.0,0.05659933]
[1767541891338,0.01096791,91175.0,91171.0,0.0109684]
[1767541891949,0.01096791,91175.0,91171.0,0.05623837]
[1767541892207,0.06576164,91176.0,91171.0,0.11108019]
[1767541892417,0.01096767,91177.0,91172.0,0.10011136]
[1767541893066,0.01096767,91177.0,91173.0,0.05484071]
[1767541893274,0.06580555,91178.0,91177.0,0.000999]
[1767541893474,0.06580555,91178.0,91174.0,0.01096803]
[1767541894372,0.01096755,91178.0,91174.0,0.01096803]
[1767541894738,0.01096755,91178.0,91172.0,0.1110796]
[1767541894878,0.05483841,91177.0,91172.0,0.11107951]
[1767541895262,0.06580608,91177.0,91172.0,0.11107951]
[1767541895589,0.01096767,91177.0,91173.0,0.11253717]
[1767541895798,0.01096767,91177.0,91173.0,0.06580884]
[1767541895997,0.01096755,91178.0,91174.0,0.01096803]
[1767541896311,0.06580568,91178.0,91173.0,0.06580884]
[1767541896510,0.01096767,91177.0,91173.0,0.01096815]
[1767541896714,0.01096791,91175.0,91170.0,0.06617142]
[1767541896914,0.06580735,91176.0,91171.0,0.06581022]
[1767541897180,0.01096767,91177.0,91172.0,0.06580914]
[1767541897683,0.06580562,91178.0,91174.0,0.01096803]
[1767541897898,0.01096767,91177.0,91173.0,0.01096815]
[1767541898525,0.06580617,91177.0,91173.0,0.01096815]
[1767541898730,0.01096719,91181.0,91177.0,0.05583734]
[1767541898955,0.06580106,91184.0,91178.0,0.06580522]
[1767541899113,0.06579747,91189.0,91182.0,0.01096707]
[1767541899311,0.01096587,91192.0,91187.0,0.01096647]
[1767541899535,0.06579605,91191.0,91187.0,0.01096647]
[1767541899731,0.0657068,91192.0,91187.0,0.06579864]
[1767541899938,0.01096503,91199.0,91194.0,0.05482808]
[1767541900178,0.06578952,91200.0,91195.0,0.01096551]
[1767541900382,0.01096491,91200.0,91195.0,0.01096551]
[1767541900613,0.01096527,91197.0,91193.0,0.01096575]
[1767541900772,0.01096539,91196.0,91192.0,0.01096587]
[1767541901111,0.01096539,91196.0,91191.0,0.06579548]
[1767541901112,0.06579244,91196.0,91191.0,0.06579548]
[1767541901310,0.01096515,91198.0,91193.0,0.01096575]
[1767541901511,0.06579065,91199.0,91194.0,0.06579379]
[1767541902061,0.06579065,91199.0,91195.0,0.04672833]
[1767541903729,0.01096491,91200.0,91195.0,0.04672833]
[1767541903933,0.06578821,91202.0,91200.0,0.04672833]
[1767541904156,0.05482396,91201.0,91200.0,0.04672833]
[1767541904301,0.01578821,91202.0,91200.0,0.04672833]
[1767541904302,0.01096467,91202.0,91200.0,0.04672833]
[1767541904508,0.01096479,91201.0,91198.0,0.04672833]
[1767541904916,0.06578815,91202.0,91198.0,0.04672833]
[1767541905129,6.727e-05,91202.0,91201.0,0.000999]
[1767541905358,0.0004,91205.0,91202.0,0.01096467]
[1767541905593,0.0004,91205.0,91202.0,0.06578798]
[1767541905908,0.00031151,91205.0,91202.0,0.06578798]
[1767541906118,0.00031151,91205.0,91202.0,0.01096467]